Cogmind - Beta 16 @@@ ROGUE MODE // 2026.01.25 @ 23:09:09 Player: k1ll3rb0t Result: Destroyed by G-67 Veteran with Field Laser Performance ------------- Evolutions (4) 2000 Regions Visited (10) 2000 Robots Destroyed (179) 895 Value Destroyed (10029) 10029 Prototype IDs (7) 140 Alien Tech Used (0) 0 Bonus (4304) 4304 TOTAL SCORE: 19368 Bonus ------- High Alert Combat Kills 2629 Follower Combat Kills 1092 Entered Garrisons 600 Friendly Fire -17 Cogmind --------- Core Integrity 0/850 Matter 20/300 Energy 100/100 System Corruption 5% Temperature Cool (12) Movement Core (50) Location -6/Factory Parts ------- > --- POWER (1) -------- (None) > --- PROPULSION (5) --- (None) > --- UTILITY (6) ------ (None) > --- WEAPON (3) ------- (None) > --- INVENTORY (5) ---- Drone Bay (2/2) Improved EM Pulse Cannon Gauss Rifle Heavy Machine Gun Plasma Cutter Peak State ------------ > --- POWER ------------ Light Quantum Reactor > --- PROPULSION ------- Heavy Siege Treads Wheel Compact Wheel Armored Wheel > --- UTILITY ---------- Advanced Heat Sink Cargo Storage Unit IFF Parser Weapon Cycler Hardlight Generator > --- WEAPON ----------- Heavy Ion Cannon Magnetic Acceleration Cannon Power Sword > --- INVENTORY -------- Light Antimatter Reactor Improved Treads Armored Treads Advanced Treads Coolant Injector Compact Battery High-capacity Matter Pod Kinecellerator Kinecellerator Weapon Cycler Advanced Phase Shifter Hardlight Generator Drone Bay Drone Bay Gatling Laser Gatling Laser Improved EM Pulse Cannon Gauss Rifle Heavy Machine Gun KE Penetrator Mini Grenade Launcher Rocket Array Rocket Array Plasma Cutter [Rating: 69] Favorites ----------- Power Heavy Ion Engine Engine Heavy Ion Engine Power Core Light Nuclear Core Reactor Light Quantum Reactor Propulsion Compact Wheel Treads Improved Treads Leg Aluminum Leg Wheel Compact Wheel Utility Cargo Storage Unit Device Weapon Cycler Storage Cargo Storage Unit Processor Improved Signal Interpreter Hackware Hacking Suite Protection Hardened Medium Armor Plating Weapon Autogun Energy Gun Gatling Laser Energy Cannon Heavy Ion Cannon Ballistic Gun Autogun Ballistic Cannon Heavy Assault Cannon Launcher Rocket Launcher Special Weapon Mining Laser Impact Weapon Power Maul Slashing Weapon Katana Build | -11 -10 -9 -8 -8 -7 -7 -7 -7 -7 -6 ------- Run | Yrd Mat Mat Mat Gar Fac Gar Fac Sto Gar Fac Slots Evolved 8 | . . 2 2 . 2 . . . . 2 Power . | . . . . . . . . . . . Propulsion 3 | . . . . . 1 . . . . 2 Utility 4 | . . 1 2 . 1 . . . . . Weapon 1 | . . 1 . . . . . . . . Parts Attached 98 | 7 14 19 3 2 7 8 7 4 3 24 Power 14 | 1 1 4 . . 1 1 2 . 2 2 Engine 9 | 1 1 2 . . 1 1 2 . . 1 Core 3 | . . 2 . . . . . . 1 . Reactor 2 | . . . . . . . . . 1 1 Propulsion 24 | 2 6 5 1 . 2 3 . . . 5 Treads 9 | . . 4 . . 2 1 . . . 2 Leg 8 | 2 6 . . . . . . . . . Wheel 7 | . . 1 1 . . 2 . . . 3 Hover . | . . . . . . . . . . . Flight . | . . . . . . . . . . . Utility 28 | 2 3 4 2 1 3 1 2 2 . 8 Device 14 | 1 2 1 . . 3 . 1 1 . 5 Storage 4 | 1 1 1 1 . . . . . . . Processor 2 | . . . . . . . 1 . . 1 Hackware 1 | . . . . . . . . . . 1 Protection 7 | . . 2 1 1 . 1 . 1 . 1 Artifact . | . . . . . . . . . . . Weapon 32 | 2 4 6 . 1 1 3 3 2 1 9 Energy Gun 3 | . . . . . . . 1 . . 2 Energy Cannon 4 | . 1 . . . . . 1 . . 2 Ballistic Gun 11 | 2 2 3 . 1 1 1 . . . 1 Ballistic Cannon 4 | . . 1 . . . . . 1 . 2 Launcher 4 | . . 1 . . . 1 . 1 1 . Special Weapon 3 | . 1 . . . . 1 . . . 1 Impact Weapon 1 | . . . . . . . 1 . . . Slashing Weapon 2 | . . 1 . . . . . . . 1 Piercing Weapon . | . . . . . . . . . . . Special Melee Weapon . | . . . . . . . . . . . Unidentified Prototypes 3 | . . 2 . . . . . 1 . . Parts Lost 26 | . . . . . . 6 . . 1 19 Power 5 | . . . . . . 1 . . 1 3 Propulsion 10 | . . . . . . 3 . . . 7 Utility 5 | . . . . . . 1 . . . 4 Weapon 6 | . . . . . . 1 . . . 5 Highest Loss Streak 4 | . . . . . . 2 . . 1 4 To Critical Strikes . | . . . . . . . . . . . Average Backups 24 | 4 12 17 23 28 28 27 27 28 28 27 Power 1 | . 1 1 2 2 2 1 1 1 . . Propulsion 6 | 2 5 5 7 11 8 7 5 6 6 4 Utility 7 | . 2 2 5 6 8 9 9 9 9 10 Weapon 8 | . 2 6 7 7 8 7 10 10 11 10 Tool/Special . | . . . . . . . . . . . Unused Backups 40 | . 6 2 . 4 4 2 7 2 2 11 Power 3 | . . 1 . . . . 1 . 1 . Propulsion 7 | . 1 . . 1 2 . 2 . . 1 Utility 13 | . . . . 1 1 . 2 . . 9 Weapon 14 | . 2 1 . 2 1 2 2 2 1 1 Tool/Special 3 | . 3 . . . . . . . . . Average Slot Usage (%) 86 | . 99 98 82 88 83 83 87 83 81 73 Engine 6 | . 14 6 9 9 7 7 7 7 4 . Treads 6 | . . 11 2 . 7 7 7 7 7 6 Leg 4 | . 28 1 . . . . . . . . Wheel 12 | . . 8 15 18 15 14 15 15 15 15 Device 14 | . 14 11 9 9 14 15 18 18 20 14 Storage 8 | . 14 11 9 9 7 7 7 7 7 5 Protection 6 | . . 9 10 16 7 7 7 7 7 4 Energy Cannon 2 | . 11 . . . . . 6 7 2 1 Ballistic Gun 13 | . 14 30 18 18 18 17 8 2 3 . Ballistic Cannon 2 | . . 2 9 . . . . 3 7 5 Slashing Weapon 1 | . . . . 8 4 3 2 . . . Peak Build Rating 69 | 9 14 21 28 38 50 50 50 50 52 69 Average Rating 36 | 5 10 18 23 30 45 45 45 46 46 57 On Entrance 31 | . 9 14 21 28 38 50 49 42 48 50 Avg Prop Armor Cover (%) 6 | . . 7 7 . 4 4 4 4 4 12 Naked Turns 3 | . . . . . . . . . . 3 Heaviest Build 191 | 12 32 64 172 175 183 183 186 191 191 186 Greatest Support 44 | 20 26 40 28 28 28 28 28 28 28 44 Greatest Overweight (x) 16 | . 1 3 6 6 6 14 6 6 6 16 Average Overweight (x) 4 | . . 2 4 5 6 6 6 5 6 4 Largest Inventory Capacity 30 | 8 15 20 30 30 30 30 30 30 30 30 Average Capacity 25 | 7 13 18 28 30 30 30 30 30 30 29 Most Carried 30 | 8 15 20 30 30 30 30 30 30 30 30 Average Carried 24 | 4 12 18 24 29 29 28 29 29 29 27 Final Capacity 30 | 8 15 20 30 30 30 30 30 30 30 5 Final Carried 30 | 8 15 20 29 30 30 29 29 30 30 5 Class Distribution -------------------- 26% | Hauler-Tank 25% | Hauler-Mutant 14% | Hauler-Gunner 11% | Mutant 11% | Tank 4% | Commander-Tank 3% | Scavenger-Mutant Dominant Class ---------------- Mutant | -10/Materials Tank | -9/Materials Hauler-Tank | -8/Materials Hauler-Mutant | -8/Garrison Hauler-Mutant | -7/Factory Hauler-Tank | -7/Garrison Hauler-Mutant | -7/Factory Hauler-Tank | -7/Storage Hauler-Gunner | -7/Garrison Hauler-Tank | -6/Factory Resources | -11 -10 -9 -8 -8 -7 -7 -7 -7 -7 -6 ----------- Run | Yrd Mat Mat Mat Gar Fac Gar Fac Sto Gar Fac Matter Collected 5011 | 278 335 1100 . 27 243 1214 425 64 797 528 Remotely . | . . . . . . . . . . . Salvage Created 6236 | 46 1013 1155 . 27 207 1515 360 59 778 1076 Parts 315 | 5 54 79 . 1 8 74 18 1 32 43 Haulers Intercepted 4 | . 1 2 . . . . 1 . . . Recyclers Shooed 3 | . 2 . . . . . . . . 1 Parts Field Recycled . | . . . . . . . . . . . Retrieved Matter . | . . . . . . . . . . . Parts Self-Destructed . | . . . . . . . . . . . Prevented . | . . . . . . . . . . . Parts Restored . | . . . . . . . . . . . Kills | -11 -10 -9 -8 -8 -7 -7 -7 -7 -7 -6 ------- Run | Yrd Mat Mat Mat Gar Fac Gar Fac Sto Gar Fac Combat Hostiles Destroyed 154 | . 21 32 . 1 4 38 3 1 20 34 Melee 2 | . . . . 1 . . . . . 1 Guns 55 | . 6 16 . . 4 18 2 . 2 7 Cannons 38 | . 15 5 . . . . 1 1 11 5 AOE 56 | . . 11 . . . 20 . . 7 18 Classes Destroyed 15 | 1 7 2 . . 1 2 1 . . 1 Worker 6 | . . . . . . . 2 . . 4 Builder 2 | . 1 . . . . . . . . 1 Tunneler 4 | 2 . . . . . . 2 . . . Hauler 4 | . 1 2 . . . . 1 . . . Recycler 3 | . 2 . . . . . 1 . . . Operator 3 | . 2 1 . . . . . . . . Watcher 3 | . 1 2 . . . . . . . . Swarmer 26 | . 6 8 . 1 . 4 . . 3 4 Saboteur 3 | . . . . . . . . . . 3 Grunt 86 | . 15 16 . . 3 25 1 . 11 15 Brawler 3 | . . 1 . . . 1 . . . 1 Duelist 4 | . . . . . . 1 . . 1 2 Sentry 18 | . . 7 . . . 4 1 1 3 2 Hunter 4 | . . . . . 1 . . . . 3 Programmer 10 | . . . . . . 3 1 . 2 4 Best Kill Streak 11 | 2 3 10 . 1 3 5 3 1 5 11 Combat Bots Only 10 | . 3 10 . 1 3 5 1 1 5 10 Max Kills in Single Turn 5 | 1 1 4 . 1 1 2 1 1 3 5 Gunslinging . | . . . . . . . . . . . Exploded 5 | . . 4 . . . 2 . . 3 5 Melee 1 | . . . . 1 . . . . . 1 Uniques/NPCs Destroyed . | . . . . . . . . . . . Combat | -11 -10 -9 -8 -8 -7 -7 -7 -7 -7 -6 -------- Run | Yrd Mat Mat Mat Gar Fac Gar Fac Sto Gar Fac Hostile Shots Fired 923 | . 56 78 . . 22 265 17 9 99 377 Missed 287 | . 9 26 . . 5 83 8 6 41 109 Hits 636 | . 47 52 . . 17 182 9 3 58 268 Melee 13 | . . . . . . 2 . . . 11 Projectile 623 | . 47 52 . . 17 180 9 3 58 257 AOE 1 | . . . . . . . . . 1 . Critical Strikes 20 | . 1 1 . . . 5 . . 1 12 Damage Taken 8215 | . 509 626 . . 201 1980 123 48 765 3963 Core 1207 | . 54 75 . . . 146 . . 81 851 Absorbed by Shields 472 | . . . . . . 51 . . 4 417 Reduced by Siege Mode 7 | . . . . . . . . . . 7 Core Remaining (%) 85 | 100 78 81 . 100 . . . . 67 . Volleys Fired 439 | 2 71 60 . 2 10 88 27 5 106 68 Largest 3 | 2 2 3 . 1 3 3 3 3 2 3 Hottest 175 | 40 100 83 . 37 83 90 175 175 115 160 Shots Fired 818 | 4 131 155 . 2 30 207 45 9 135 100 Gun 504 | 4 74 129 . . 30 185 19 2 18 43 Cannon 230 | . 46 20 . 2 . . 26 7 88 41 Launcher 57 | . . 6 . . . 22 . . 13 16 Special 27 | . 11 . . . . . . . 16 . Kinetic 550 | 4 74 149 . 2 30 185 12 3 59 32 Thermal 202 | . 57 . . . . . 33 6 63 43 Explosive 57 | . . 6 . . . 22 . . 13 16 Electromagnetic 9 | . . . . . . . . . . 9 Robot Hit Streak 47 | 1 11 14 . . 8 21 17 6 14 47 Robot Miss Streak 5 | 1 4 5 . . 1 4 1 2 3 4 Penetration Max . | . . . . . . . . . . . Secondary Targets 6 | . . 2 . . 1 3 . . . . Max Gunslinging Chain 1 | . . 1 . . 1 1 . . . . Shots Hit Robots 503 | 2 68 98 . 2 22 135 25 7 55 89 Core Hits 353 | 2 36 53 . 1 11 76 15 2 41 116 Critical Kills . | . . . . . . . . . . . Critical Parts Destroyed 2 | . . . . . . 1 1 . . . Critical Strikes 13 | . . . . . . 3 1 . 6 3 Destroy 4 | . . . . . . 3 1 . . . Blast 7 | . . . . . . . . . 6 1 Sever 2 | . . . . . . . . . . 2 Melee Attacks 74 | . . 1 . 13 2 28 16 . . 14 Impact 6 | . . . . . . . 6 . . . Slashing 68 | . . 1 . 13 2 28 10 . . 14 Piercing . | . . . . . . . . . . . Sneak Attacks 2 | . . . . 1 . . 1 . . . Combat Hostiles . | . . . . . . . . . . . Follow-up Attacks . | . . . . . . . . . . . Damage Inflicted 17502 | 21 1088 2168 . 124 396 4382 717 201 2694 5711 Guns 6619 | 21 533 1300 . . 396 2709 372 33 142 1113 Cannons 4089 | . 526 226 . . . . 280 168 1518 1371 Explosions 5962 | . 5 614 . . . 1673 . . 857 2813 Melee 588 | . . . . 124 . . 65 . . 399 Ramming 43 | . . 28 . . . . . . . 15 Kinetic 7871 | 21 533 1526 . . 396 2709 200 110 1301 1075 Thermal 2794 | . 550 . . . . . 452 91 536 1165 Explosive 5877 | . . 614 . . . 1673 . . 857 2733 Electromagnetic 329 | . 5 . . . . . . . . 324 Impact . | . . . . . . . . . . . Slashing 588 | . . . . 124 . . 65 . . 399 Piercing . | . . . . . . . . . . . Highest Corruption 5 | . . 5 . . . . . . . 5 Average Corruption 4 | . . 5 . . . . . . . 4 Corruption Purged . | . . . . . . . . . . . Corruption Blocked . | . . . . . . . . . . . Effects 41 | . . 29 . . . . . . . 12 Message Errors 12 | . . 7 . . . . . . . 5 Matter Fused 7 | . . 6 . . . . . . . 1 Heat Flow Errors 4 | . . 4 . . . . . . . . Energy Discharges 6 | . . 3 . . . . . . . 3 Parts Rejected 1 | . . 1 . . . . . . . . Parts Fused 1 | . . 1 . . . . . . . . Data Loss (minor) 4 | . . 3 . . . . . . . 1 Data Loss (major) 2 | . . . . . . . . . . 2 Misfires 1 | . . 1 . . . . . . . . Alerts 1 | . . 1 . . . . . . . . Weapon Failures 2 | . . 2 . . . . . . . . Overload Shots . | . . . . . . . . . . . Overflow Damage 469 | . . 11 . 30 . 4 1 . 187 236 Projectiles 351 | . . . . . . . 1 . 155 195 Explosions 88 | . . 11 . . . 4 . . 32 41 Melee 30 | . . . . 30 . . . . . . Knockbacks 17 | . . 2 . . . . . . 3 12 Impact . | . . . . . . . . . . . Kinetic 16 | . . 2 . . . . . . 3 11 Secondary 1 | . . . . . . . . . . 1 Self-Inflicted Damage 241 | . . 11 . . . 112 . . 30 88 Shots 9 | . . . . . . 4 . . 1 4 Rammed 6 | . . 4 . . . . . . . 2 Targets Rammed 6 | . . 4 . . . . . . . 2 Kicked . | . . . . . . . . . . . Crushed . | . . . . . . . . . . . Highest Temperature 235 | . 98 235 . . 9 227 144 86 102 149 Average Temperature 32 | . 23 38 . . 5 51 57 39 29 22 Received Heat Transfer 2437 | . 228 273 . . 69 794 30 21 273 749 Siege Activations 1 | . . . . . . . . . . 1 Total Turns 5 | . . . . . . . . . . 5 Longest Duration 5 | . . . . . . . . . . 5 Martial Activations . | . . . . . . . . . . . Shielding Activations . | . . . . . . . . . . . Robots Disrupted . | . . . . . . . . . . . Combat Hostiles . | . . . . . . . . . . . Robots Corrupted 2 | . . . . . . . . . . 2 Combat Hostiles 2 | . . . . . . . . . . 2 Parts Fried 5 | . . . . . . . . . . 5 Impact Corruptions . | . . . . . . . . . . . Robots Melted 1 | . . . . . . . . . . 1 Combat Hostiles 1 | . . . . . . . . . . 1 Parts Melted 12 | . 2 . . . . . 1 . 5 4 Heat Transferred 5588 | . 1160 . . . . . 720 136 1073 2499 Parts Sabotaged . | . . . . . . . . . . . Parts Stolen . | . . . . . . . . . . . Parts Stripped . | . . . . . . . . . . . Power Chain Reactions . | . . . . . . . . . . . Alert | -11 -10 -9 -8 -8 -7 -7 -7 -7 -7 -6 ------- Run | Yrd Mat Mat Mat Gar Fac Gar Fac Sto Gar Fac Maximum Alert Level 5 | . 1 2 . 2 1 4 3 2 5 5 Low Security (%) 26 | 100 85 61 100 36 6 1 . . . . Level 1 16 | . 14 15 . 34 93 7 . 95 18 . Level 2 10 | . . 23 . 28 . 18 9 4 3 . Level 3 18 | . . . . . . 31 90 . 23 7 Level 4 18 | . . . . . . 40 . . 18 62 Level 5 9 | . . . . . . . . . 35 29 High Security . | . . . . . . . . . . . Max Security . | . . . . . . . . . . . Peak Influence 2164 | 5 243 492 157 558 292 1567 935 405 2164 1840 Initial 1136 | . . 65 157 46 292 150 822 369 256 1136 Average 700 | . 130 202 112 304 244 948 799 364 1179 1366 Influence Increases 7960 | 10 686 980 4 512 181 1477 442 116 2098 1454 Destroy 0b10 Robot/C 3740 | . 420 640 . 20 100 760 180 40 800 780 Destroy 0b10 Robot/NC 165 | 10 35 25 . . 10 . 50 . 5 30 Destroy Leader 586 | . 84 158 . . 32 30 52 20 50 160 Allied During Kill 471 | . . . . 2 7 . 19 21 393 29 Successful Hack 110 | . 27 21 4 14 . 14 . 4 7 19 Select Force Hacks 150 | . 60 60 . . 30 . . . . . Disable Machine 405 | . 15 15 . 15 . 45 90 15 60 150 Anti-Garrison Action 1500 | . . . . 450 . 450 . . 600 . Destroy Structure 578 | . 15 46 . 11 2 163 21 1 183 136 Partial Spotted 30 | . 15 . . . . . . . . 15 Lose Combat Pursuer 225 | . 15 15 . . . 15 30 15 . 135 Influence Decreases 6154 | 10 532 760 307 25 524 125 1195 535 329 1812 Entered New Map 3019 | . . 89 217 25 266 65 745 445 139 1028 Time Decay 2385 | 10 532 521 90 . 198 . 410 90 . 534 Lost Part 260 | . . . . . . 60 . . 10 190 Lost Ally 340 | . . . . . 60 . 40 . 180 60 Purge Threat 150 | . . 150 . . . . . . . . Squads Dispatched 36 | . 4 3 . . 3 . 3 . . 23 Investigation 9 | . 3 2 . . 2 . . . . 2 Extermination 7 | . . . . . 1 . 2 . . 4 Reinforcement 6 | . 1 1 . . . . 1 . . 3 Assault 8 | . . . . . . . . . . 8 Garrison 6 | . . . . . . . . . . 6 Intercept . | . . . . . . . . . . . Searches Triggered . | . . . . . . . . . . . Construction Impeded 2 | . . . . . . . . . . 2 Haulers Reinforced 1 | . . . . . . . 1 . . . Active Scanning Responses . | . . . . . . . . . . . Cargo Convoy Interrupts . | . . . . . . . . . . . Stealth | -11 -10 -9 -8 -8 -7 -7 -7 -7 -7 -6 --------- Run | Yrd Mat Mat Mat Gar Fac Gar Fac Sto Gar Fac Distress Signals 9 | . 2 3 . . . . 1 1 . 2 Communications Jammed . | . . . . . . . . . . . Distress Signals . | . . . . . . . . . . . Times Spotted 238 | . 35 42 1 . 7 33 11 4 38 67 Peak Tracking Total 13 | . 3 11 1 . 1 4 4 3 6 13 Tactical Retreats 10 | . 1 1 . . . 1 2 1 . 4 Traps | -11 -10 -9 -8 -8 -7 -7 -7 -7 -7 -6 ------- Run | Yrd Mat Mat Mat Gar Fac Gar Fac Sto Gar Fac Traps Triggered 12 | . 1 . . 1 . 5 . . 2 3 Indirectly . | . . . . . . . . . . . Trap Hack Attempts . | . . . . . . . . . . . Triggered . | . . . . . . . . . . . Disarmed . | . . . . . . . . . . . Reprogrammed . | . . . . . . . . . . . Reused . | . . . . . . . . . . . Traps Extracted . | . . . . . . . . . . . Installed . | . . . . . . . . . . . Triggered . | . . . . . . . . . . . Machines | -11 -10 -9 -8 -8 -7 -7 -7 -7 -7 -6 ---------- Run | Yrd Mat Mat Mat Gar Fac Gar Fac Sto Gar Fac Machines Disabled 44 | . 1 1 . 6 . 8 6 1 11 10 Max in Single Turn 2 | . 1 1 . 1 . 1 1 1 2 1 Garrison Relay 15 | . . . . 5 . 5 . . 5 . Phase Generator 1 | . . . . . . . . . 1 . Machines Repaired . | . . . . . . . . . . . Machines Dismantled 1 | . . . . . . 1 . . . . Machines Sabotaged . | . . . . . . . . . . . Overloaded Fab Kills . | . . . . . . . . . . . Hacking | -11 -10 -9 -8 -8 -7 -7 -7 -7 -7 -6 --------- Run | Yrd Mat Mat Mat Gar Fac Gar Fac Sto Gar Fac Machines Accessed 42 | . 8 11 2 1 4 2 1 3 3 7 Terminals 29 | . 6 6 1 1 2 2 . 2 3 6 Fabricators 1 | . . . . . . . . . . 1 Repair Stations 1 | . . 1 . . . . . . . . Recycling Units 5 | . 2 2 . . 1 . . . . . Scanalyzers 3 | . . 2 . . . . 1 . . . Garrison Access 3 | . . . 1 . 1 . . 1 . . Total Hacks 103 | . 22 38 3 1 6 5 3 5 8 12 Successful 51 | . 9 26 2 1 2 1 2 3 1 4 Failed 52 | . 13 12 1 . 4 4 1 2 7 8 Catastrophic 12 | . 3 2 . . 1 . . . 2 4 Database Lockouts . | . . . . . . . . . . . Manual 40 | . 16 13 . . 3 . . 1 . 7 Terminals 76 | . 20 22 2 1 4 5 . 4 8 10 Fabricators 2 | . . . . . . . . . . 2 Repair Stations 2 | . . 2 . . . . . . . . Recycling Units 5 | . 2 2 . . 1 . . . . . Scanalyzers 15 | . . 12 . . . . 3 . . . Garrison Access 3 | . . . 1 . 1 . . 1 . . Terminal Hacks 26 | . 6 11 1 1 . 1 . 2 1 3 Part Schematic 1 | . 1 . . . . . . . . . Robot Analysis 1 | . . 1 . . . . . . . . Prototype ID Bank 2 | . . 1 . . . . . . . 1 Open Door 1 | . . . . . . . . . 1 . Branch Access Points 1 | . . 1 . . . . . . . . Emergency Access Points 2 | . . . . . . 1 . . . 1 Terminal Index 1 | . . . . . . . . . . 1 Recycling Unit Index 2 | . 1 1 . . . . . . . . Alert Level 3 | . . 2 1 . . . . . . . Unreport Threat 1 | . . 1 . . . . . . . . Locate Traps 2 | . . 1 . . . . . 1 . . Hauler Manifests 3 | . 1 1 . . . . . 1 . . Registered Components 2 | . 1 1 . . . . . . . . Zone Layout 3 | . 2 1 . . . . . . . . Garrison Registry 1 | . . . . 1 . . . . . . Fabricator Hacks 1 | . . . . . . . . . . 1 Build 1 | . . . . . . . . . . 1 Repair Station Hacks 2 | . . 2 . . . . . . . . Scan Component 1 | . . 1 . . . . . . . . Repair 1 | . . 1 . . . . . . . . Recycling Unit Hacks . | . . . . . . . . . . . Scanalyzer 12 | . . 10 . . . . 2 . . . Insert Component 2 | . . 2 . . . . . . . . Analyze 2 | . . 2 . . . . . . . . Retrieve Study 8 | . . 6 . . . . 2 . . . Garrison Access Hacks 3 | . . . 1 . 1 . . 1 . . Unlock Access 3 | . . . 1 . 1 . . 1 . . Unauthorized Hacks 7 | . 3 3 . . 1 . . . . . Terminals 2 | . 1 1 . . . . . . . . Botnet 2 | . 1 1 . . . . . . . . Fabricators . | . . . . . . . . . . . Repair Stations . | . . . . . . . . . . . Recycling Units 5 | . 2 2 . . 1 . . . . . Tunnel 5 | . 2 2 . . 1 . . . . . Scanalyzers . | . . . . . . . . . . . Garrison Access . | . . . . . . . . . . . Data Cores Recovered 1 | . 1 . . . . . . . . . Used 1 | . 1 . . . . . . . . . Hacking Detections 32 | . 5 8 1 1 2 2 1 2 3 7 Full Trace Events 6 | . 1 . . . 1 . . . 2 2 Feedback Events . | . . . . . . . . . . . Feedback Blocked . | . . . . . . . . . . . Robot Schematics Acquired . | . . . . . . . . . . . Robots Built . | . . . . . . . . . . . Authchips . | . . . . . . . . . . . Time . | . . . . . . . . . . . Total Robot Build Rating . | . . . . . . . . . . . Part Schematics Acquired 3 | . 1 2 . . . . . . . . Parts Built 1 | . . . . . . . . . . 1 Authchips . | . . . . . . . . . . . Time 58 | . . . . . . . . . . 58 Total Part Build Rating 7 | . . . . . . . . . . 7 Part Studies Acquired 7 | . . 5 . . . . 2 . . . Parts Repaired 1 | . . 1 . . . . . . . . Time 44 | . . 44 . . . . . . . . Parts Recycled . | . . . . . . . . . . . Recycled Matter . | . . . . . . . . . . . Retrieved Matter . | . . . . . . . . . . . Retrieved Components . | . . . . . . . . . . . Parts Scanalyzed 2 | . . 2 . . . . . . . . Part Schematics Acquired 2 | . . 2 . . . . . . . . Parts Damaged 1 | . . 1 . . . . . . . . Bothacking | -11 -10 -9 -8 -8 -7 -7 -7 -7 -7 -6 ------------ Run | Yrd Mat Mat Mat Gar Fac Gar Fac Sto Gar Fac Used RIF Installer . | . . . . . . . . . . . Robots Hacked . | . . . . . . . . . . . Non-combat . | . . . . . . . . . . . Combat . | . . . . . . . . . . . Robot Hacks Applied . | . . . . . . . . . . . Relay Couplers Released 59 | . . . . 20 . 19 . . 20 . Machine Destruction 59 | . . . . 20 . 19 . . 20 . Fabnet Peak Effective % . | . . . . . . . . . . . Robots Rewired 6 | . . . . 3 . . . . 3 . Allies Hacked . | . . . . . . . . . . . Hacks Repelled . | . . . . . . . . . . . Allies | -11 -10 -9 -8 -8 -7 -7 -7 -7 -7 -6 -------- Run | Yrd Mat Mat Mat Gar Fac Gar Fac Sto Gar Fac Total Allies 22 | . . . . 3 . 2 . 10 7 . Largest Group 11 | . . . . 3 3 2 2 10 11 4 Highest-Rated Group 271 | . . . . 35 35 70 70 173 271 221 Highest-Rated Ally 95 | . . . . 15 15 39 39 29 95 95 Initial Warlord ECA Mod 26 | . . . . . 8 8 17 17 17 26 Total Orders . | . . . . . . . . . . . Ally Attacks 228 | . . . . . 22 . 28 9 155 14 Total Damage 4462 | . . . . . 326 . 576 143 2755 662 Kills 43 | . . . . . 3 . 10 1 22 7 Allies Corrupted 1 | . . . . . . . . . 1 . Allies Melted . | . . . . . . . . . . . Intel | -11 -10 -9 -8 -8 -7 -7 -7 -7 -7 -6 ------- Run | Yrd Mat Mat Mat Gar Fac Gar Fac Sto Gar Fac Active Infowar (turns) 1734 | 30 235 . . . 199 . 425 90 . 755 IFF 226 | . . . . . . . . . . 226 Terrain 215 | 30 185 . . . . . . . . . Seismic 1293 | . 50 . . . 199 . 425 90 . 529 Robot Analysis Total 1 | . . 1 . . . . . . . . Derelict Logs Recovered . | . . . . . . . . . . . Drone Launches . | . . . . . . . . . . . Drone Recoveries . | . . . . . . . . . . . Exploration | -11 -10 -9 -8 -8 -7 -7 -7 -7 -7 -6 ------------- Run | Yrd Mat Mat Mat Gar Fac Gar Fac Sto Gar Fac Turns Passed 11357 | 126 1541 1617 196 908 405 2010 990 193 1852 1519 Spaces Moved 5360 | 86 667 848 114 480 201 883 468 83 843 687 Core 20 | 4 . . . . . . . . . 16 Treads 132 | . . 116 . . . . . . . 16 Legs 809 | 82 667 60 . . . . . . . . Wheels 4399 | . . 672 114 480 201 883 468 83 843 655 Hover . | . . . . . . . . . . . Flight . | . . . . . . . . . . . Fastest Speed 50 | 50 120 135 135 160 175 175 175 160 175 50 Average Speed 166 | 116 173 142 155 174 175 176 175 174 175 157 Slowest Speed 477 | 120 190 190 175 175 175 290 175 175 175 477 Overloaded Moves . | . . . . . . . . . . . Propulsion Burnouts . | . . . . . . . . . . . Robots Hopped . | . . . . . . . . . . . Potential Cave-ins . | . . . . . . . . . . . Cave-ins Triggered 1 | . . . . . . . . . . 1 Exploration Rate (%) 46 | 6 95 77 13 84 5 90 14 18 87 20 Regions Visited 10 Branch Regions 1 Pre-discovered Areas 5 | . 2 2 . . 1 . . . . . Known Exits Taken 4 | . . . 1 . 1 . 1 1 . . Unknown Exits Taken 3 | 1 1 1 . . . . . . . . Scrap Searched . | . . . . . . . . . . . Spaces Dug 124 | . 9 13 . 1 2 58 19 . 21 1 Terrain Destroyed 531 | . 9 59 . 1 2 118 20 . 184 138 Melee 20 | . . 1 . 1 2 1 14 . . 1 Projectile 41 | . 9 5 . . . . 6 . 15 6 AOE 470 | . . 53 . . . 117 . . 169 131 Terrain Rammed . | . . . . . . . . . . . Walls Destroyed . | . . . . . . . . . . . Machines Disabled . | . . . . . . . . . . . Actions | -11 -10 -9 -8 -8 -7 -7 -7 -7 -7 -6 --------- Run | Yrd Mat Mat Mat Gar Fac Gar Fac Sto Gar Fac Total 7004 | 104 915 1156 133 529 234 1149 580 124 1087 993 Wait 593 | 2 129 184 2 4 . 63 12 19 30 148 Move 5352 | 85 666 847 114 479 201 881 467 83 842 687 Hop . | . . . . . . . . . . . Pick Up 105 | 8 14 16 12 4 7 7 18 2 6 11 Fast Attach 27 | 7 3 5 . 2 . . 1 2 1 6 Attach 36 | . 1 1 2 . 2 6 3 1 3 17 Detach 11 | . . . 1 1 . . . 4 . 5 Swap 124 | . 12 19 1 1 7 29 18 4 12 21 Drop 92 | . 19 19 1 7 5 3 18 4 5 11 Fire 439 | 2 71 60 . 2 10 88 27 5 106 68 Melee 74 | . . 1 . 13 2 28 16 . . 14 Ram 3 | . . 1 . . . . . . . 2 Kick . | . . . . . . . . . . . Crush 3 | . . 3 . . . . . . . . Escape Stasis 70 | . . . . . . 36 . . 31 3 Rewire 67 | . . . . 16 . . . . 51 . Trap . | . . . . . . . . . . . Miscellaneous 8 | . . . . . . 8 . . . . Route ------- -11/Scrapyard -10/Materials (discovered 6 exits: *Mat x3 / [*Min x2] / [*Sub]) -9/Materials (discovered 3 exits: *Mat x2 / *Min) -8/Materials -8/Garrison (discovered 4 exits: *Fac x3 / [Mat]) -7/Factory (discovered 2 exits: [*Low] / Gar) -7/Garrison (discovered 3 exits: *Fac x3) -7/Factory -7/Storage -7/Garrison (discovered 3 exits: *Fac x3) -6/Factory (discovered 2 exits: *Fac x2) History --------- Turn | Location | Event 10 | -11/Scrapyard | Discovered new exit (range 15) 127 | -11/Scrapyard | Entered Materials 309 | -10/Materials | Build established: Mutant 384 | -10/Materials | Discovered new exit (range 10) 433 | -10/Materials | Discovered new exit (range 12) 1045 | -10/Materials | Discovered new exit (range 16) 1377 | -10/Materials | Build established: Scavenger-Mutant 1384 | -10/Materials | Discovered new exit (range 5) 1390 | -10/Materials | Discovered new exit (range 10) 1500 | -10/Materials | Discovered new exit (range 9) 1668 | -10/Materials | Entered another Materials area 1668 | -9/Materials | Evolved 2 slots: Utility x1, Weapon x1 1949 | -9/Materials | Discovered new exit (range 14) 2118 | -9/Materials | Repaired Broken Plasma Cutter 2349 | -9/Materials | Build established: Tank 2374 | -9/Materials | Discovered new exit (range 22) 2612 | -9/Materials | Identified exit to Mines 2696 | -9/Materials | Destroyed 10 combat bots 3264 | -9/Materials | Discovered new exit (range 15) 3285 | -9/Materials | Entered another Materials area 3285 | -8/Materials | Evolved 2 slots: Utility x2 3480 | -8/Materials | Identified exit to Garrison 3481 | -8/Materials | Entered Garrison 3481 | -8/Garrison | Discovered recently destroyed garrison 3568 | -8/Garrison | Garrison Relay disabled 3847 | -8/Garrison | Build established: Hauler-Mutant 3857 | -8/Garrison | Discovered new exit (range 63) 3857 | -8/Garrison | Discovered new exit (range 87) 3857 | -8/Garrison | Discovered new exit (range 14) 3857 | -8/Garrison | Discovered new exit (range 35) 3892 | -8/Garrison | Garrison Relay disabled 4085 | -8/Garrison | Garrison Relay disabled 4284 | -8/Garrison | Garrison Relay disabled 4304 | -8/Garrison | Garrison Relay disabled 4389 | -8/Garrison | Entered Factory 4389 | -7/Factory | Accompanied by 3 allies 4389 | -7/Factory | Evolved 2 slots: Propulsion x1, Utility x1 4587 | -7/Factory | Discovered new exit (range 3) 4794 | -7/Factory | Identified exit to Garrison 4794 | -7/Factory | Entered Garrison 4937 | -7/Garrison | Triggered checkpoint 4959 | -7/Garrison | Garrison Relay disabled 5150 | -7/Garrison | Triggered checkpoint 5193 | -7/Garrison | Triggered checkpoint 5201 | -7/Garrison | Triggered checkpoint 5317 | -7/Garrison | Triggered checkpoint 5481 | -7/Garrison | Triggered checkpoint 5502 | -7/Garrison | Garrison Relay disabled 5504 | -7/Garrison | Discovered new exit (range 12) 5518 | -7/Garrison | Garrison Relay disabled 5950 | -7/Garrison | Triggered checkpoint 6090 | -7/Garrison | Discovered new exit (range 13) 6173 | -7/Garrison | Garrison Relay disabled 6186 | -7/Garrison | Triggered checkpoint 6425 | -7/Garrison | Discovered new exit (range 15) 6466 | -7/Garrison | Attempted to access garrison exit controls, blocked by remote lockdown 6509 | -7/Garrison | Triggered checkpoint 6622 | -7/Garrison | Rescued a captive Derelict 6624 | -7/Garrison | Rescued a captive Derelict 6665 | -7/Garrison | Garrison Relay disabled 6804 | -7/Garrison | Entered Factory 6804 | -7/Factory | Accompanied by 2 allies 7518 | -7/Factory | Discovered new exit (range 12) 7791 | -7/Factory | Identified exit to Storage 7794 | -7/Factory | Entered Storage 7830 | -7/Storage | Found Prototype Launcher 7830 | -7/Storage | Identified Rocket Array 7835 | -7/Storage | Found Rocket Array 7912 | -7/Storage | Assisted by bots powering up and referring to "LRC-V3" 7987 | -7/Storage | Identified exit to Garrison 7987 | -7/Storage | Entered Garrison 7987 | -7/Garrison | Accompanied by 10 allies 8031 | -7/Garrison | Triggered checkpoint 8056 | -7/Garrison | Garrison Relay disabled 8107 | -7/Garrison | Triggered checkpoint 8226 | -7/Garrison | Build established: Commander-Tank 8335 | -7/Garrison | Triggered checkpoint 8339 | -7/Garrison | Triggered checkpoint 8377 | -7/Garrison | P-60 Hacker assimilated allied Virus 4b 8403 | -7/Garrison | Triggered checkpoint 8412 | -7/Garrison | P-60 Hacker assimilated allied Trooper 4i 8436 | -7/Garrison | Lost 6 allies 8541 | -7/Garrison | Triggered checkpoint 8559 | -7/Garrison | Garrison Relay disabled 8585 | -7/Garrison | Discovered new exit (range 8) 8640 | -7/Garrison | Rescued a captive Derelict 8651 | -7/Garrison | Rescued a captive Derelict 8693 | -7/Garrison | Found embedded Infiltrators 8759 | -7/Garrison | Garrison Relay disabled 8958 | -7/Garrison | Build established: Hauler-Gunner 9153 | -7/Garrison | Discovered new exit (range 11) 9169 | -7/Garrison | Garrison Relay disabled 9534 | -7/Garrison | Phase Generator disabled 9582 | -7/Garrison | Discovered new exit (range 3) 9644 | -7/Garrison | Garrison Relay disabled 9773 | -7/Garrison | Triggered checkpoint 9839 | -7/Garrison | Entered Factory 9839 | -6/Factory | Accompanied by 4 allies 9839 | -6/Factory | Evolved 2 slots: Propulsion x2 9927 | -6/Factory | Fabricated Hvy. Siege Treads (x1) 10082 | -6/Factory | Lost 3 allies 10183 | -6/Factory | Spotted B-75 Beast 10238 | -6/Factory | Build established: Hauler-Tank 10369 | -6/Factory | Discovered new exit (range 9) 10433 | -6/Factory | Garrison activated, responded to threat 10483 | -6/Factory | Discovered new exit (range 4) 10539 | -6/Factory | First assault squad dispatched 10810 | -6/Factory | Identified exit to Factory 10868 | -6/Factory | Crushed by falling debris 10917 | -6/Factory | Lost 4 parts (1n2u1w) 10928 | -6/Factory | Destroyed 10 combat bots 10975 | -6/Factory | Garrison activated, responded to threat 11161 | -6/Factory | Lost 3 parts (2n1w) 11288 | -6/Factory | Lost 4 parts (1p1n1u1w) 11325 | -6/Factory | Core integrity fell below 50% 11331 | -6/Factory | Released all parts (5) 11346 | -6/Factory | Core integrity fell below 20% 11358 | -6/Factory | Destroyed by G-67 Veteran with Field Laser Last Messages --------------- 11332_ Acquired Rocket Array. 11333_ The unstable cave ceiling collapses. 11333_ U-05 Engineer lays Concrete. 11334_ U-05 Engineer builds a Wall. 11336_ U-05 Engineer lays Concrete. 11339_ U-05 Engineer builds a Wall. 11340_ 0ZNPWHHPOLLMRIGC=K%NXJP3PJP 11344_ Acquired Remote Datajack. 11347_ Remote Datajack severed. 11355_ C-45 Heavy ARC bursts open, deploying its payload. 11355_ G-67 Veteran unfolds itself. 11355_ G-50 Soldier unfolds itself. 11355_ M-28 Smith unfolds itself. 11356_ U-05 Engineer lays Concrete. 11356_ Rocket Array destroyed. 11356_ Slammed into G-50 Soldier. 11357_ U-05 Engineer lays Concrete. 11358_ U-05 Engineer builds a Wall. 11358_ Slammed into M-28 Smith. Map ----- +----------------------------------------------------+ | | | | | | | | | | | | | | | | | ?????????????????????????????????????????????????? | | ?????????????????????????????????????????????????? | | ???????????????????????????????????????????????#?? | | ???????????????????????????????????????????????# | | ???????????????????????????????????????????????# | | ???????????????????????????????????????????????# | | ???????????????????????????????????????????????? | | ?????????????????????????????????????????????????? | | ?????????????????????????????????????????????????? | | ???????????????????????????????????+?????????????? | | ?????????????????????????????????????????????????? | | ?????????????????????????????????????????????????? | | ????????????????????????????????????###+###??????? | | ?????????????###############+#####+## #??????? | | ?????????????# # ######## | | ?????????????# """""""m/ = T | | ?????????????# """"""" # ######## | | ?????????????# """""""@# ####### #??????? | | ?????????????# """"""" # ######"########????? | | ?????????????# / gllg gg% + ![ % #????? | | ?????????????# |""""""" # # !"" !" #????? | | ?????????????# """"" og# # ""T"" " #????? | | ?????????????# """""" %# # "" "" " #????? | | ?????????????# """"""[=# # " #????? | | ?????????????# / !==]%!# # " [[! #????? | | ?????????????# !!!!!u]# # " [!! #????? | | ?????????????######+##!#### # " [! #???? | | ?????????????????? [!!!! # # ! " ##???? | | ?????????????????? ! /]# # " #????? | | ????????????????" """ / # ?? ?????? | | ??????????????""" """*% ##+######??????????? | | ??????????????""" """ % ? ??????????????### | | ?????????????? ??????????????# | | ???????????????####+## # #?????????????# | | ??????????????????? ? #?????????????# | | ??????????????????? ? ^ ????????????# | | ????????????????????? ^ #######??????????# | | ?????????????????????##########?# """ ?????????# | | ????????????????????????????????# """ ?????????# | | ????????????????????????????????# """ !????????# | | ????????????????????????????????# ###?????#+# | | ????????????????????????????????# + #?????# # | +----------------------------------------------------+ Best States ------------- Heat Dissipation 56 Energy Generation 25 Energy Capacity 290 Matter Stores 300 Matter Capacity 300 Sight Range 16 Terrain Scan Range 16 Terrain Scan Density 10 Armor Coverage 600 Weapon Cycling 15 Evasion (%) 55 Recoil Reduction 2 Kinecelleration 30 Offensive Hacking 10 Item Schematics ----------------- Huge Storage Unit | -10/Materials | Hacked Plasma Cutter | -9/Materials | Scanalyzed Arm. Wheel | -9/Materials | Scanalyzed Robot Schematics ------------------ None Fabricated ------------ Hvy. Siege Treads | x1 | -6/Factory | Preloaded Repaired ---------- Plasma Cutter | 99% | -9/Materials | Broken Studied --------- Com. Wheel | -9/Materials | Hacked Autogun | -9/Materials | Hacked Rocket Launcher | -9/Materials | Hacked Mni. Grenade Launcher | -9/Materials | Hacked Arm. Wheel | -9/Materials | Hacked Hvy. Assault Cannon | -7/Factory | Hacked Gatling Laser | -7/Factory | Hacked Alien Tech Used ----------------- None Achievements -------------- None Challenges ------------ None Game ------ Seed PulseZhirovRail Manual? 0 Play Time 02:13:58 Cumulative 295.7 hours Start 2026.01.23 @ 03:42:56 End 2026.01.25 @ 23:09:09 Sessions 2 Manual Loads 0 Difficulty Rogue Special Mode None Game No. 77 Rogue 77 Adventurer 0 Explorer 0 Win Type - Total 5 Types 4/0/0/1/0/0/0/0/0/0 Lore% 69 Gallery% 68 Achievement% 55 Wizard Run 0 Options --------- Layout 1 ASCII 0 Keyboard 0 Movement Mouse Keybinds 0 Fullscreen 1 Font 32/SmallcapsGlow Map View 50x35 Zoom Use 0% Tactical HUD 1 Map Filters NONE Filters NONE Steam 1 RUN: 199e2263-5c92-4de3-9ad1-cad55433e871